Cogmind - Beta 15 @@@ ROGUE MODE // 2025.08.12 @ 14:06:23 Player: puppuppit Result: Destroyed by D-53 Grenadier with Mini Grenade Launcher Performance ------------- Evolutions (0) 0 Regions Visited (2) 400 Robots Destroyed (41) 205 Value Destroyed (791) 791 Prototype IDs (0) 0 Alien Tech Used (0) 0 Bonus (0) 0 TOTAL SCORE: 1396 Bonus ------- None Cogmind --------- Core Integrity 0/250 Matter 247/300 Energy 64/100 System Corruption 0% Temperature Cool (0) Movement Core (450) Ox8 Location -10/Mines Parts ------- > --- POWER (1) -------- (None) > --- PROPULSION (2) --- (None) > --- UTILITY (2) ------ Large Storage Unit Hacking Suite > --- WEAPON (2) ------- Autogun Autogun > --- INVENTORY (15) --- Improved Ion Engine Small Matter Pod (50) Medium Matter Pod (100) Faulty Experimental Sensor Array Armor Integrity Analyzer Assault Rifle Assault Rifle Assault Rifle Autogun Autogun Light Cannon Rocket Launcher Rocket Launcher Peak State ------------ > --- POWER ------------ Improved Ion Engine > --- PROPULSION ------- Light Treads Light Treads > --- UTILITY ---------- Large Storage Unit Hacking Suite > --- WEAPON ----------- Light Cannon Bore Cannon > --- INVENTORY -------- Improved Ion Engine Small Matter Pod Medium Matter Pod Experimental Sensor Array Armor Integrity Analyzer Assault Rifle Assault Rifle Assault Rifle Autogun Autogun Autogun Autogun Light Cannon Rocket Launcher Rocket Launcher [Rating: 17] Favorites ----------- Power Improved Ion Engine Engine Improved Ion Engine Propulsion Light Treads Treads Light Treads Utility Hacking Suite Device Improved Terrain Scanner Storage Large Storage Unit Hackware Hacking Suite Weapon Light Cannon Ballistic Gun Assault Rifle Ballistic Cannon Light Cannon Launcher Rocket Launcher Build | -11 -10 -10 ------- Run | Yrd Mat Min Slots Evolved . | . . . Power . | . . . Propulsion . | . . . Utility . | . . . Weapon . | . . . Parts Attached 20 | 8 8 4 Power 4 | 1 3 . Engine 4 | 1 3 . Core . | . . . Reactor . | . . . Propulsion 2 | 2 . . Treads 2 | 2 . . Leg . | . . . Wheel . | . . . Hover . | . . . Flight . | . . . Utility 5 | 2 3 . Device 1 | 1 . . Storage 3 | 1 2 . Processor . | . . . Hackware 1 | . 1 . Protection . | . . . Artifact . | . . . Weapon 9 | 3 2 4 Energy Gun . | . . . Energy Cannon . | . . . Ballistic Gun 5 | 3 . 2 Ballistic Cannon 3 | . 2 1 Launcher 1 | . . 1 Special Weapon . | . . . Impact Weapon . | . . . Slashing Weapon . | . . . Piercing Weapon . | . . . Special Melee Weapon . | . . . Unidentified Prototypes . | . . . Parts Lost 6 | . 1 5 Power 2 | . 1 1 Propulsion 2 | . . 2 Utility . | . . . Weapon 2 | . . 2 Highest Loss Streak 5 | . 1 5 To Critical Strikes . | . . . Average Backups 10 | 1 10 14 Power . | . . 1 Propulsion . | . . . Utility 1 | . 1 2 Weapon 7 | . 8 11 Tool/Special . | . . . Unused Backups 12 | . 1 11 Power 1 | . . 1 Propulsion . | . . . Utility 4 | . . 4 Weapon 7 | . 1 6 Tool/Special . | . . . Average Slot Usage (%) 95 | . 95 98 Engine 11 | . 10 13 Treads 27 | . 28 26 Storage 13 | . 13 14 Hackware 13 | . 12 14 Ballistic Gun 5 | . 6 . Ballistic Cannon 21 | . 20 26 Peak Build Rating 17 | 9 12 17 Average Rating 10 | 5 10 12 On Entrance 7 | . 9 12 Naked Turns . | . . . Heaviest Build 33 | 13 33 33 Greatest Support 40 | 40 40 40 Greatest Overweight (x) . | . . . Average Overweight (x) . | . . . Largest Inventory Capacity 15 | 8 15 15 Average Capacity 13 | 7 13 15 Most Carried 15 | 2 15 15 Average Carried 10 | 1 10 14 Final Capacity 15 | 8 15 15 Final Carried 15 | 2 15 13 Class Distribution -------------------- 100% | Mutant Dominant Class ---------------- Mutant | -10/Materials Mutant | -10/Mines Resources | -11 -10 -10 ----------- Run | Yrd Mat Min Matter Collected 1282 | 383 759 140 Remotely . | . . . Salvage Created 944 | 164 696 84 Parts 75 | 16 48 11 Haulers Intercepted 1 | . 1 . Recyclers Shooed 1 | 1 . . Parts Field Recycled . | . . . Retrieved Matter . | . . . Parts Self-Destructed . | . . . Prevented . | . . . Kills | -11 -10 -10 ------- Run | Yrd Mat Min Combat Hostiles Destroyed 23 | . 17 6 Guns 4 | . 4 . Cannons 15 | . 13 2 AOE 4 | . . 4 Classes Destroyed 9 | 3 6 . Worker 6 | 2 4 . Builder 1 | . 1 . Tunneler 5 | 3 2 . Hauler 1 | . 1 . Recycler 2 | 1 1 . Operator 2 | . 2 . Watcher 1 | . 1 . Swarmer 7 | . 3 4 Grunt 16 | . 14 2 Best Kill Streak 6 | 3 6 4 Combat Bots Only 4 | . 4 4 Max Kills in Single Turn 2 | 1 2 2 Gunslinging . | . . . Exploded 2 | . . 2 Melee . | . . . Uniques/NPCs Destroyed . | . . . Combat | -11 -10 -10 -------- Run | Yrd Mat Min Hostile Shots Fired 93 | . 71 22 Missed 23 | . 20 3 Hits 70 | . 51 19 Projectile 70 | . 51 19 AOE 16 | . . 16 Critical Strikes 1 | . 1 . Damage Taken 1256 | . 571 685 Core 250 | . 92 158 Absorbed by Shields . | . . . Regen/Repaired (Parts) 188 | . 188 . Core Remaining (%) 100 | 100 . . Volleys Fired 98 | 17 68 13 Largest 2 | 2 2 2 Hottest 78 | 40 60 78 Shots Fired 192 | 34 136 22 Gun 64 | 34 28 2 Cannon 124 | . 108 16 Launcher 4 | . . 4 Special . | . . . Kinetic 188 | 34 136 18 Thermal . | . . . Explosive 4 | . . 4 Electromagnetic . | . . . Robot Hit Streak 6 | 6 5 6 Robot Miss Streak 4 | 1 4 3 Penetration Max . | . . . Secondary Targets 1 | . 1 . Max Gunslinging Chain 1 | . 1 . Shots Hit Robots 107 | 23 72 12 Core Hits 52 | 8 32 12 Critical Kills . | . . . Critical Parts Destroyed . | . . . Critical Strikes 2 | . 1 1 Blast 2 | . 1 1 Melee Attacks . | . . . Impact . | . . . Slashing . | . . . Piercing . | . . . Sneak Attacks . | . . . Combat Hostiles . | . . . Follow-up Attacks . | . . . Damage Inflicted 1887 | 262 1170 455 Guns 477 | 262 182 33 Cannons 1131 | . 988 143 Explosions 279 | . . 279 Melee . | . . . Ramming . | . . . Kinetic 1608 | 262 1170 176 Thermal . | . . . Explosive 279 | . . 279 Electromagnetic . | . . . Impact . | . . . Slashing . | . . . Piercing . | . . . Highest Corruption . | . . . Average Corruption . | . . . Corruption Purged . | . . . Corruption Blocked . | . . . Overload Shots . | . . . Overflow Damage 15 | . . 15 Projectiles 13 | . . 13 Explosions 2 | . . 2 Melee . | . . . Knockbacks 12 | . 10 2 Impact . | . . . Kinetic 11 | . 9 2 Secondary 1 | . 1 . Self-Inflicted Damage . | . . . Shots . | . . . Rammed . | . . . Targets Rammed . | . . . Kicked . | . . . Crushed . | . . . Highest Temperature 66 | . 66 42 Average Temperature 13 | . 14 9 Received Heat Transfer 276 | . 276 . Siege Activations . | . . . Martial Activations . | . . . Shielding Activations . | . . . Robots Disrupted . | . . . Combat Hostiles . | . . . Robots Corrupted . | . . . Combat Hostiles . | . . . Parts Fried . | . . . Impact Corruptions . | . . . Robots Melted . | . . . Combat Hostiles . | . . . Parts Melted . | . . . Heat Transferred . | . . . Parts Sabotaged . | . . . Parts Stolen . | . . . Parts Stripped . | . . . Power Chain Reactions . | . . . Alert | -11 -10 -10 ------- Run | Yrd Mat Min Maximum Alert Level 1 | . 1 1 Low Security (%) 95 | 100 93 97 Level 1 4 | . 6 2 Level 2 . | . . . Level 3 . | . . . Level 4 . | . . . Level 5 . | . . . High Security . | . . . Max Security . | . . . Peak Influence 221 | 15 221 200 Initial 82 | . . 82 Average 64 | 2 63 113 Influence Increases 889 | 30 660 199 Destroy 0b10 Robot/C 460 | . 340 120 Destroy 0b10 Robot/NC 90 | 30 60 . Destroy Leader 104 | . 84 20 Successful Hack 22 | . 22 . Select Force Hacks 60 | . 60 . Disable Machine 45 | . 30 15 Destroy Structure 33 | . 4 29 Lose Combat Pursuer 75 | . 60 15 Influence Decreases 798 | 30 449 319 Entered New Map 129 | . . 129 Time Decay 609 | 30 439 140 Lost Part 60 | . 10 50 Squads Dispatched 6 | . 6 . Investigation 4 | . 4 . Extermination . | . . . Reinforcement 2 | . 2 . Assault . | . . . Garrison . | . . . Intercept . | . . . Searches Triggered . | . . . Construction Impeded . | . . . Haulers Reinforced . | . . . Active Scanning Responses . | . . . Cargo Convoy Interrupts . | . . . Stealth | -11 -10 -10 --------- Run | Yrd Mat Min Distress Signals 3 | . 3 . Communications Jammed . | . . . Distress Signals . | . . . Times Spotted 38 | . 30 8 Peak Tracking Total 6 | . 6 3 Tactical Retreats 3 | . 2 1 Traps | -11 -10 -10 ------- Run | Yrd Mat Min Traps Triggered 1 | . 1 . Indirectly . | . . . Trap Hack Attempts . | . . . Triggered . | . . . Disarmed . | . . . Reprogrammed . | . . . Reused . | . . . Traps Extracted . | . . . Installed . | . . . Triggered . | . . . Machines | -11 -10 -10 ---------- Run | Yrd Mat Min Machines Disabled 3 | . 2 1 Max in Single Turn 1 | . 1 1 Machines Repaired . | . . . Machines Dismantled . | . . . Machines Sabotaged . | . . . Overloaded Fab Kills . | . . . Hacking | -11 -10 -10 --------- Run | Yrd Mat Min Machines Accessed 9 | . 9 . Terminals 6 | . 6 . Fabricators . | . . . Repair Stations 1 | . 1 . Recycling Units 2 | . 2 . Scanalyzers . | . . . Garrison Access . | . . . Total Hacks 33 | . 33 . Successful 20 | . 20 . Failed 13 | . 13 . Catastrophic 1 | . 1 . Database Lockouts . | . . . Manual 29 | . 29 . Terminals 25 | . 25 . Fabricators . | . . . Repair Stations 5 | . 5 . Recycling Units 3 | . 3 . Scanalyzers . | . . . Garrison Access . | . . . Terminal Hacks 3 | . 3 . Robot Analysis 3 | . 3 . Fabricator Hacks . | . . . Repair Station Hacks 4 | . 4 . Scan Component 2 | . 2 . Repair 2 | . 2 . Recycling Unit Hacks . | . . . Scanalyzer . | . . . Garrison Access Hacks . | . . . Unauthorized Hacks 13 | . 13 . Terminals 9 | . 9 . Botnet 3 | . 3 . Operators 1 | . 1 . Skim 5 | . 5 . Fabricators . | . . . Repair Stations 1 | . 1 . Patch 1 | . 1 . Recycling Units 3 | . 3 . Recyclers 1 | . 1 . Tunnel 2 | . 2 . Scanalyzers . | . . . Garrison Access . | . . . Data Cores Recovered . | . . . Used . | . . . Hacking Detections 7 | . 7 . Full Trace Events 1 | . 1 . Feedback Events . | . . . Feedback Blocked . | . . . Robot Schematics Acquired . | . . . Robots Built . | . . . Authchips . | . . . Time . | . . . Total Robot Build Rating . | . . . Part Schematics Acquired . | . . . Parts Built . | . . . Authchips . | . . . Time . | . . . Total Part Build Rating . | . . . Parts Repaired 2 | . 2 . Time 52 | . 52 . Parts Recycled . | . . . Recycled Matter . | . . . Retrieved Matter . | . . . Retrieved Components . | . . . Parts Scanalyzed . | . . . Part Schematics Acquired . | . . . Parts Damaged . | . . . Bothacking | -11 -10 -10 ------------ Run | Yrd Mat Min Used RIF Installer . | . . . Robots Hacked . | . . . Non-combat . | . . . Combat . | . . . Robot Hacks Applied . | . . . Relay Couplers Released . | . . . Fabnet Peak Effective % . | . . . Robots Rewired . | . . . Allies Hacked . | . . . Hacks Repelled . | . . . Allies | -11 -10 -10 -------- Run | Yrd Mat Min Total Allies . | . . . Largest Group . | . . . Highest-Rated Group . | . . . Highest-Rated Ally . | . . . Total Orders . | . . . Ally Attacks . | . . . Total Damage . | . . . Kills . | . . . Allies Corrupted . | . . . Allies Melted . | . . . Intel | -11 -10 -10 ------- Run | Yrd Mat Min Active Infowar (turns) 142 | 27 115 . Terrain 142 | 27 115 . Robot Analysis Total 3 | . 3 . Derelict Logs Recovered . | . . . Drone Launches . | . . . Drone Recoveries . | . . . Exploration | -11 -10 -10 ------------- Run | Yrd Mat Min Turns Passed 2030 | 198 1540 292 Spaces Moved 1013 | 86 776 151 Core 10 | 2 8 . Treads 1003 | 84 768 151 Legs . | . . . Wheels . | . . . Hover . | . . . Flight . | . . . Fastest Speed 50 | 50 50 160 Average Speed 158 | 157 158 160 Slowest Speed 160 | 160 160 160 Overloaded Moves . | . . . Propulsion Burnouts . | . . . Robots Hopped . | . . . Potential Cave-ins . | . . . Cave-ins Triggered . | . . . Exploration Rate (%) 43 | 4 95 30 Regions Visited 2 Branch Regions 1 Pre-discovered Areas 2 | . 2 . Known Exits Taken . | . . . Unknown Exits Taken 2 | 1 1 . Scrap Searched . | . . . Spaces Dug . | . . . Terrain Destroyed 63 | . . 63 Melee . | . . . Projectile 1 | . . 1 AOE 62 | . . 62 Terrain Rammed . | . . . Walls Destroyed . | . . . Machines Disabled . | . . . Actions | -11 -10 -10 --------- Run | Yrd Mat Min Total 1242 | 113 949 180 Wait 69 | . 68 1 Move 1011 | 85 775 151 Hop . | . . . Pick Up 20 | 2 15 3 Fast Attach 12 | 7 5 . Attach 7 | 1 3 3 Detach 5 | 1 3 1 Swap 10 | . 5 5 Drop 10 | . 7 3 Fire 98 | 17 68 13 Melee . | . . . Ram . | . . . Kick . | . . . Crush . | . . . Escape Stasis . | . . . Rewire . | . . . Trap . | . . . Miscellaneous . | . . . Route ------- -11/Scrapyard -10/Materials (discovered 6 exits: *Mat x3 / [*Min x2] / *Sub) -10/Mines (discovered 4 exits: *Mat x2 / Exi / *Sub) History --------- Turn | Location | Event 16 | -11/Scrapyard | Discovered new exit (range 16) 199 | -11/Scrapyard | Entered Materials 203 | -10/Materials | Discovered new exit (range 11) 300 | -10/Materials | Build established: Mutant 462 | -10/Materials | Discovered new exit (range 15) 687 | -10/Materials | Discovered new exit (range 16) 899 | -10/Materials | Discovered new exit (range 11) 1110 | -10/Materials | Repaired Lgt. Cannon 1122 | -10/Materials | Identified exit to Materials 1122 | -10/Materials | Identified exit to Subcaves 1138 | -10/Materials | Repaired Lgt. Cannon 1179 | -10/Materials | Learned 2 Mines zone layouts 1225 | -10/Materials | Learned location of 2 exits from Mines 1262 | -10/Materials | Learned location of 2 exits from Materials 1308 | -10/Materials | Learned location of 3 exits from Materials 1363 | -10/Materials | Learned 2 Storage zone layouts 1739 | -10/Materials | Entered Mines 1741 | -10/Mines | Identified exit to Exiles 1834 | -10/Mines | Found a damaged Exp. Sensor Array with a note attached 1838 | -10/Mines | Found Prototype Device 1930 | -10/Mines | Assembled infested the area 1935 | -10/Mines | Assisted by a Guerilla fighting off Assembled 2020 | -10/Mines | Core integrity fell below 50% 2031 | -10/Mines | Destroyed by D-53 Grenadier with Mini Grenade Launcher Last Messages --------------- 01990_ Dropped Assault Rifle. 01991_ Acquired Armor Integrity Analyzer. 01994_ The unstable cave ceiling collapses. 01995_ Acquired 21 matter. 02017_ Destroyed Shock Absorption System. 02019_ Lgt. Treads destroyed. 02020_ D-53 Grenadier knocked back. 02020_ HV Slug penetrates Wall. 02021_ The unstable cave ceiling collapses. 02021_ K-01 Serf collects debris. 02021_ Bore Cannon destroyed. 02022_ The unstable cave ceiling collapses. 02023_ Imp. Ion Engine destroyed. 02024_ The unstable cave ceiling collapses. 02024_ K-01 Serf collects debris. 02025_ The unstable cave ceiling collapses. 02025_ Lgt. Treads destroyed. 02025_ Lgt. Cannon destroyed. 02027_ K-01 Serf collects debris. 02029_ The unstable cave ceiling collapses. Map ----- +----------------------------------------------------+ | ??????????## #?????????# [ ## #?? | | ???????????# #?????????## #??? | | ???????????# #??????????### ##??? | | ???????????# #????????????## ### #???? | | ???????????## ###????????????#####?## #???? | | ????????????#### ###?????????######### #???? | | ???????????## #?????????# #?# #???? | | ???????????# #### #?????????# ### #???? | | ???????????# # ############## "" [ * #???? | | ???????????# # = ! """ #####???? | | ???????????# # ## ### #### """ #???????? | | ???????????# # ## # #?# ##?# #???????? | | ???????????# [ ## ### ### #???????? | | ???????????### ###### ## ########???????? | | ?????????????# #????# ## < ##?????????????? | | ?????????????# #???## ## ##????????????? | | ?????????????# #???# ## #??###???????? | | ?????????##### ###?? ?## % #?## ##??????? | | ?????????# ### ??# #?# #??????? | | ???????#?# # # #> k ### d%#### ### ????? | | ???????# ## [ #### #;d #???>????? | | ???????# # ! [ ##??## #######????????? | | ???????# ## #### ##?????????????? | | ???????# = "## #?????????????? | | ???????# |%a %### #?????????????? | | ???????#### # @ #?????????????? | | ??????????##### ##### #?????????????? | | ??????????????###???# #?????????????? | | ????????????????????## ##?????????????? | | ?????????????????????## ##??????????????? | | | | | | | | | | | | | | | | | | | | | | | | | | | | | | | | | | | | | | | | | +----------------------------------------------------+ Best States ------------- Heat Dissipation 25 Energy Generation 12 Energy Capacity 265 Matter Stores 300 Matter Capacity 300 Sight Range 16 Terrain Scan Range 16 Terrain Scan Density 10 Evasion (%) 50 Recoil Reduction 2 Offensive Hacking 10 Item Schematics ----------------- None Robot Schematics ------------------ None Fabricated ------------ Nothing Repaired ---------- Lgt. Cannon | 35% | -10/Materials Lgt. Cannon | 38% | -10/Materials Alien Tech Used ----------------- None Achievements -------------- None Challenges ------------ None Game ------ Seed GatlingSensorEdition Manual? 0 Play Time 00:12:19 Cumulative 509.1 hours Start 2025.08.12 @ 13:56:11 End 2025.08.12 @ 14:06:23 Sessions 1 Manual Loads 0 Difficulty Rogue Special Mode None Game No. 276 Rogue 276 Adventurer 0 Explorer 0 Win Type - Total 5 Types 3/0/1/1/0/0/0/0/0/0 Lore% 86 Gallery% 76 Achievement% 68 Wizard Run 0 Options --------- Layout 2 ASCII 0 Keyboard 1 Movement Vi Keybinds 0 Fullscreen 1 Font 16/Tamsyn Map View 55x47 Zoom Use 0% Tactical HUD 1 Map Filters NONE Filters NONE Steam 0 RUN: 4db511dd-0e0d-4a2d-ab88-b21d57540ee7